bitfinex/quotes_ETHUSD_20230117
["timestamp","ask_amount","ask_price","bid_price","bid_amount"]
[1673964128214,0.95357419,1571.4,1571.3,20.73429193]
[1673964129106,0.95357419,1571.4,1571.3,19.1553356]
[1673964130143,0.95357419,1571.4,1571.3,20.73429119]
[1673964132083,4.07019826,1571.4,1571.3,8.00599119]
[1673964132382,4.07019826,1571.4,1571.3,8.00600699]
[1673964133400,4.07019826,1571.4,1571.3,14.37015699]
[1673964134538,4.07019826,1571.4,1571.3,8.00600699]
[1673964134751,4.07019826,1571.4,1571.3,14.37015699]
[1673964136488,0.95357419,1571.4,1571.3,20.73430699]
[1673964136867,0.95357419,1571.4,1571.3,14.37015699]
[1673964137069,0.95357419,1571.4,1571.3,8.00600699]
[1673964137412,0.95357419,1571.4,1571.3,8.00600844]
[1673964138014,0.95357419,1571.4,1571.3,6.4270356]
[1673964138328,0.95357419,1571.4,1571.3,8.00602025]
[1673964138819,2.38217507,1571.4,1571.3,6.4270356]
[1673964139330,1.42937311,1571.4,1571.3,6.4270356]
[1673964140152,5.50025654,1571.4,1571.3,8.00602185]
[1673964140347,5.56625654,1571.4,1571.3,8.00602185]
[1673964140977,4.61199718,1571.4,1571.3,6.4270356]
[1673964141191,4.54599718,1571.4,1571.3,6.4270356]
[1673964141427,5.50036102,1571.4,1571.3,6.4270356]
[1673964141619,5.56636102,1571.4,1571.3,6.4270356]
[1673964142215,5.56636102,1571.4,1571.3,20.73428919]
[1673964142216,4.13776014,1571.4,1571.3,20.73428919]
[1673964142427,4.07176014,1571.4,1571.3,20.73428919]
[1673964143177,0.95513607,1571.4,1571.3,20.73428919]
[1673964146390,0.00077223,1571.4,1571.3,22.90181035]
[1673964150358,0.00077223,1571.4,1571.3,21.95228919]
[1673964150791,0.95436384,1571.5,1571.3,21.95228919]
[1673964150941,0.95436384,1571.5,1571.4,0.33795908]
[1673964151157,0.95436384,1571.5,1571.4,19.42920908]
[1673964151364,2.38296472,1571.5,1571.4,19.49209468]
[1673964151606,1.42860088,1571.5,1571.4,19.49209468]
[1673964152104,2.38265824,1571.5,1571.4,13.12834468]
[1673964152425,2.86015824,1571.5,1571.4,19.49209468]
[1673964152665,2.38265824,1571.5,1571.4,19.49209468]
[1673964152861,2.38266929,1571.5,1571.4,19.49209468]
[1673964153837,2.38266848,1571.5,1571.4,19.49209468]
[1673964154718,1.42860088,1571.5,1571.4,19.49209468]
[1673964154984,2.38265169,1571.5,1571.4,19.49209468]
[1673964156308,0.95405081,1571.5,1571.4,19.49209468]
[1673964159561,2.38265169,1571.5,1571.4,19.49209468]
[1673964159772,1.42860088,1571.5,1571.4,0.40084468]
[1673964159975,1.42860088,1571.5,1571.4,19.42920908]
[1673964160187,1.42860088,1571.5,1571.4,19.49209468]
[1673964161980,2.38263012,1571.5,1571.4,19.49209468]
[1673964162225,1.42860088,1571.5,1571.4,19.49209468]
[1673964162833,2.38263923,1571.5,1571.4,19.49209468]
[1673964164404,0.95403835,1571.5,1571.4,19.49209468]
[1673964164600,2.38263923,1571.5,1571.4,19.49209468]
[1673964165499,0.95403835,1571.5,1571.4,19.49209468]
[1673964166863,2.38263923,1571.5,1571.4,19.49209468]
[1673964167069,0.95403835,1571.5,1571.4,19.49209468]
[1673964168739,0.95403835,1571.5,1571.4,20.71009468]
[1673964176283,2.44863923,1571.6,1571.4,22.28891343]
[1673964176504,2.38263923,1571.6,1571.4,19.49209468]
[1673964176767,0.95403835,1571.5,1571.4,19.49209468]
[1673964178619,0.95403835,1571.5,1571.4,20.70409468]
[1673964178825,0.95403835,1571.5,1571.4,22.2829539]
[1673964179084,2.38263923,1571.6,1571.4,22.2829539]
[1673964179238,0.95403835,1571.5,1571.4,20.70409468]
[1673964179448,2.38263923,1571.6,1571.4,22.28291488]
[1673964179710,2.38263923,1571.6,1571.4,20.70409468]
[1673964180387,0.95403835,1571.5,1571.4,20.70409468]
[1673964180553,0.95403835,1571.5,1571.4,24.51085768]
[1673964181481,2.38263923,1571.6,1571.4,24.51085768]
[1673964181657,2.38263923,1571.6,1571.4,22.93203473]
[1673964182124,0.95403835,1571.5,1571.4,13.12834468]
[1673964182668,0.95403835,1571.5,1571.4,14.70719879]
[1673964182819,0.95403835,1571.5,1571.4,8.34344879]
[1673964183026,0.95403835,1571.5,1571.4,0.40084468]
[1673964183274,0.95403835,1571.5,1571.4,0.33795908]
[1673964183609,2.38263923,1571.5,1571.4,6.70170908]
[1673964183765,2.38263923,1571.5,1571.4,6.76459468]
[1673964184432,4.98056899,1571.5,1571.4,0.0628856]
[1673964184604,5.45676929,1571.5,1571.3,12.1984856]
[1673964184825,5.45676929,1571.5,1571.3,0.0628856]
[1673964184826,2.38556819,1571.4,1571.3,0.0628856]
[1673964185065,2.22217466,1571.4,1571.2,13.1265732]
[1673964185405,0.9542391,1571.3,1571.2,6.7620232]
[1673964185962,0.9542391,1571.3,1571.2,13.1265832]
[1673964186443,2.38558001,1571.3,1571.2,0.3976332]
[1673964186594,2.38558001,1571.3,1571.1,0.05967412]
[1673964186595,5.05608647,1571.3,1571.1,0.05967412]
[1673964186808,5.05608647,1571.3,1571.0,0.33795908]
[1673964186809,4.07062518,1571.2,1571.0,0.33795908]
[1673964187067,5.50196609,1571.2,1571.0,0.33795908]
[1673964187258,4.12062518,1571.2,1571.0,0.33795908]
[1673964187598,4.67823394,1571.2,1571.0,0.33795908]
[1673964188173,3.11662407,1571.1,1571.0,0.33795908]
[1673964188383,3.11662407,1571.1,1571.0,1.91716105]
[1673964188616,0.5436,1571.2,1571.0,1.91716105]
[1673964188856,3.59422407,1571.2,1571.0,6.70332908]
[1673964189062,3.59422407,1571.2,1571.0,8.8966452]
[1673964189277,3.11662407,1571.2,1571.0,8.8966452]
[1673964189912,3.11662407,1571.2,1571.0,6.7630032]
[1673964190078,2.0056226,1571.3,1571.1,1.579055]
[1673964190079,0.066,1571.3,1571.1,1.579055]
[1673964190293,1.49750111,1571.4,1571.2,6.36456]
[1673964190642,4.54812518,1571.4,1571.2,6.42423412]
[1673964190861,1.43150111,1571.4,1571.2,6.7621932]
[1673964191018,2.45134202,1571.5,1571.2,19.4913132]
[1673964191228,0.95400111,1571.4,1571.2,19.4913132]
[1673964193161,4.61396498,1571.5,1571.2,19.4913132]
[1673964193162,5.56796609,1571.5,1571.2,19.4913132]
[1673964193339,4.13662518,1571.5,1571.2,19.4913132]
[1673964193548,4.07062518,1571.5,1571.2,19.4913132]
[1673964193966,4.07062518,1571.5,1571.2,21.62250298]
[1673964195521,4.07062518,1571.5,1571.2,21.2845439]
[1673964195696,4.07062518,1571.5,1571.4,7.61770908]
[1673964195859,2.45134202,1571.6,1571.4,7.6773832]
[1673964196086,4.07062518,1571.6,1571.4,7.6773832]
[1673964196955,5.50196609,1571.6,1571.4,7.6773832]
[1673964197141,5.56796609,1571.6,1571.4,7.6773832]
[1673964198039,4.13662518,1571.6,1571.4,7.6773832]
[1673964198165,4.07062518,1571.6,1571.4,7.6773832]
[1673964198682,0.95400111,1571.6,1571.4,7.6773832]
[1673964198897,2.45134202,1571.7,1571.4,20.4048832]
[1673964199156,2.38534202,1571.7,1571.4,20.4048832]
[1673964199580,0.95400111,1571.7,1571.4,20.4048832]
[1673964199943,2.38534202,1571.7,1571.4,20.4048832]
[1673964200418,0.95400111,1571.7,1571.4,20.4048832]
[1673964200999,2.38534202,1571.7,1571.4,20.4048832]
[1673964201677,0.95400111,1571.7,1571.4,20.4048832]
[1673964206248,3.11662407,1571.6,1571.4,6.75745947]
[1673964206459,4.07062518,1571.6,1571.4,6.75745947]
[1673964208357,4.07062518,1571.6,1571.4,6.75745947]
[1673964209991,4.07062518,1571.6,1571.4,6.76378535]
[1673964211584,3.11662407,1571.6,1571.4,6.76378535]
[1673964211750,4.07062518,1571.6,1571.4,6.76378535]
[1673964213467,5.26369179,1571.6,1571.4,6.76378535]
[1673964213694,5.32969179,1571.6,1571.4,6.76378535]
[1673964214044,0.066,1571.6,1571.4,6.76378535]
[1673964214312,0.95400111,1571.7,1571.4,19.49128535]
[1673964215262,0.95400111,1571.7,1571.6,8.57897535]
[1673964215406,0.95400111,1571.7,1571.6,8.64497535]
[1673964215833,0.95400111,1571.7,1571.6,7.72897535]
[1673964218306,1.28108029,1571.9,1571.6,14.09191535]
[1673964218461,4.24156017,1571.9,1571.6,13.75788]
[1673964218669,4.17556017,1571.9,1571.6,13.75788]
[1673964218882,5.60690108,1571.9,1571.6,20.12082]
[1673964219140,5.67290108,1571.9,1571.6,20.12082]
[1673964219303,4.24156017,1571.9,1571.8,2.21603535]
[1673964219518,5.58048346,1571.9,1571.8,2.21603535]
[1673964219744,5.64648346,1571.9,1571.8,2.21603535]
[1673964221928,1.1249361,1571.9,1571.8,2.21603535]
[1673964222266,0.10493499,1571.9,1571.8,9.57816535]
[1673964222473,0.10493499,1571.9,1571.8,9.64416535]
[1673964222695,0.10493499,1571.9,1571.8,10.85016535]
[1673964227082,0.10493499,1571.9,1571.8,13.85016535]
[1673964227330,0.10248692,1571.9,1571.8,12.85016535]
[1673964227546,0.10248692,1571.9,1571.8,19.21229535]
[1673964230503,0.10248692,1571.9,1571.8,25.57442535]
[1673964232648,0.10248692,1571.9,1571.8,25.57242535]
[1673964232932,0.10248692,1571.9,1571.8,25.57442535]
[1673964233552,0.10248692,1571.9,1571.8,37.74942535]
[1673964234561,0.10248692,1571.9,1571.8,38.96742535]
[1673964244100,0.09965991,1571.9,1571.8,38.96742535]
[1673964244521,0.09965991,1571.9,1571.8,37.76142535]
[1673964245297,0.09965991,1571.9,1571.8,38.97942535]
[1673964246047,0.09965991,1571.9,1571.8,38.97742535]
[1673964246261,0.09965991,1571.9,1571.8,38.97942535]
[1673964251277,0.11003065,1572.0,1571.9,1.0]
[1673964251644,0.11003065,1572.0,1571.9,36.83381306]
[1673964251857,0.10496913,1572.1,1572.0,1.0]
[1673964252014,0.10496913,1572.1,1572.0,27.02795465]
[1673964252223,0.10496913,1572.1,1572.0,30.09395465]
[1673964253174,0.10496913,1572.1,1572.0,34.31810989]
[1673964253380,0.10496913,1572.1,1572.0,31.0410406]
[1673964253632,0.10496913,1572.1,1572.0,38.38181991]
[1673964253826,0.10496913,1572.1,1572.0,49.02391991]
[1673964254228,0.10496913,1572.1,1572.0,50.45040165]
[1673964254437,0.10496913,1572.1,1572.0,49.5033157]
[1673964255286,0.10496913,1572.1,1572.0,50.44945439]
[1673964256095,0.10496913,1572.1,1572.0,50.24136884]
[1673964258108,0.10496913,1572.1,1572.0,48.8148871]
[1673964258315,0.10496913,1572.1,1572.0,50.24136884]
[1673964258527,0.10496913,1572.1,1572.0,56.60268884]
[1673964259385,9.13e-06,1572.1,1572.0,55.65655015]
[1673964259592,9.13e-06,1572.1,1572.0,62.35755015]
[1673964259859,6.24e-06,1572.2,1572.1,20.08273]
[1673964260059,6.24e-06,1572.2,1572.1,50.29906972]
[1673964260205,6.24e-06,1572.2,1572.1,52.94355146]
[1673964260416,6.24e-06,1572.2,1572.1,50.29906972]
[1673964261272,6.24e-06,1572.2,1572.1,57.00006972]
[1673964262099,1.09e-06,1572.4,1572.2,1.0]
[1673964262311,0.13741913,1572.5,1572.3,12.48362407]
[1673964262661,0.13741913,1572.5,1572.4,28.61972407]
[1673964262851,0.13741913,1572.5,1572.4,28.91572407]
[1673964263202,0.13741913,1572.5,1572.4,28.24975942]
[1673964263847,0.13741913,1572.5,1572.4,35.26945373]
[1673964264021,0.13741913,1572.5,1572.4,38.44277836]
[1673964264210,0.18336237,1572.6,1572.5,1.0]
[1673964264442,0.14342751,1572.7,1572.6,1.0]
[1673964264656,0.14342751,1572.7,1572.6,39.47510942]
[1673964264891,0.14342751,1572.7,1572.6,41.11846344]
[1673964265214,0.14342751,1572.7,1572.6,43.76526466]
[1673964265363,0.15690411,1572.8,1572.6,64.34773354]
[1673964265573,0.15690411,1572.8,1572.7,30.08224931]
[1673964265788,0.15690411,1572.8,1572.7,30.14824931]
[1673964266039,4.11e-06,1572.8,1572.7,33.14824931]
[1673964266274,4.11e-06,1572.8,1572.7,34.72546191]
[1673964266414,4.11e-06,1572.8,1572.7,45.63904931]
[1673964266631,4.11e-06,1572.8,1572.7,41.41489407]
[1673964266870,4.11e-06,1572.8,1572.7,45.26363372]
[1673964267082,0.15739042,1572.9,1572.8,20.95823589]
[1673964267310,0.15739042,1572.9,1572.8,26.69023589]
[1673964267461,0.15739042,1572.9,1572.8,27.02427124]
[1673964269184,0.15739042,1572.9,1572.8,30.14089531]
[1673964270423,0.15739042,1572.9,1572.8,31.35889531]
[1673964271042,0.18666149,1573.3,1572.9,7.701]
[1673964271245,0.18666149,1573.3,1573.2,3.55831947]
[1673964271532,0.18666149,1573.3,1573.2,28.98419947]
[1673964271675,0.18666149,1573.3,1573.2,32.05019947]
[1673964273468,0.18666149,1573.3,1573.2,29.61719947]
[1673964274356,0.55663407,1573.3,1573.2,29.61719947]
[1673964277672,0.55663407,1573.3,1573.2,23.26072947]
[1673964277877,0.55663407,1573.3,1573.2,23.25872947]
[1673964278103,0.55663407,1573.3,1573.2,23.26072947]
[1673964280135,0.55663407,1573.3,1573.2,23.25872947]
[1673964280445,0.55663407,1573.3,1573.2,23.26072947]
[1673964282554,0.55663407,1573.3,1573.2,26.60735354]
[1673964282725,0.55663407,1573.3,1573.2,23.49072947]
[1673964283666,0.55663407,1573.3,1573.2,23.26072947]
[1673964284872,0.55663407,1573.3,1573.2,23.49072947]
[1673964285454,0.55663407,1573.3,1573.2,23.48872947]
[1673964285795,0.55663407,1573.3,1573.2,23.49072947]
[1673964286570,4.07e-06,1573.3,1573.2,27.81935354]
[1673964286718,0.0071185,1573.6,1573.2,27.81935354]
[1673964286719,0.00350405,1573.6,1573.4,25.42264]
[1673964286931,0.00350405,1573.6,1573.5,4.78203535]
[1673964287136,0.00350405,1573.6,1573.5,17.49253535]
[1673964287386,0.00350405,1573.6,1573.5,17.55853535]
[1673964287591,0.00350405,1573.6,1573.5,38.43553535]
[1673964289683,0.00350405,1573.6,1573.5,36.98753535]
[1673964290032,0.00350405,1573.6,1573.5,28.07363535]
[1673964291137,0.00350405,1573.6,1573.5,28.30363535]
[1673964293024,0.00350405,1573.6,1573.5,28.07363535]
[1673964293928,0.00350405,1573.6,1573.5,34.42888535]
[1673964294120,1e-08,1573.6,1573.5,34.42888535]
[1673964294335,1e-08,1573.6,1573.5,34.65888535]
[1673964295232,1e-08,1573.6,1573.5,43.66338535]
[1673964295690,1e-08,1573.6,1573.5,44.88138535]
[1673964296304,1e-08,1573.6,1573.5,47.99800942]
[1673964296952,1e-08,1573.6,1573.5,54.69900942]
[1673964298558,1e-08,1573.6,1573.5,55.91100942]
[1673964299358,1e-08,1573.6,1573.5,55.90900942]
[1673964299610,1e-08,1573.6,1573.5,60.11778704]
[1673964300211,1e-08,1573.6,1573.5,55.90900942]
[1673964300564,1e-08,1573.6,1573.5,55.91100942]
[1673964300724,1e-08,1573.6,1573.5,56.91100942]
[1673964301272,1e-08,1573.6,1573.5,55.69900942]
[1673964301490,0.4767,1574.0,1573.7,19.06311]
[1673964301823,0.4767,1574.0,1573.7,19.46314535]
[1673964302137,0.4767,1574.1,1573.7,19.46314535]
[1673964303376,3.81284209,1574.1,1573.7,19.46314535]
[1673964303591,5.87155262,1574.1,1573.7,19.46314535]
[1673964303803,5.09684209,1574.1,1573.8,3.11662407]
[1673964304028,5.09684209,1574.1,1573.9,19.06092]
[1673964304029,0.5427,1574.1,1573.9,19.06092]
[1673964304182,0.4767,1574.1,1573.9,19.12692]
[1673964304395,11.31094209,1574.3,1573.9,19.12692]
[1673964304396,0.4767,1574.2,1573.9,19.12692]
[1673964305040,2.91004091,1574.2,1573.9,12.77128]
[1673964305252,2.91004091,1574.2,1573.9,6.41964]
[1673964305253,1.43134091,1574.1,1573.9,6.41964]
[1673964305503,0.4767,1574.0,1573.9,6.41964]
[1673964306499,1.6907,1574.0,1573.9,6.41964]
[1673964308035,1.6907,1574.0,1573.9,0.066]
[1673964308036,8.28178301,1574.0,1573.9,0.066]
[1673964308338,3.36380193,1573.6,1573.5,7.40898]
[1673964308551,3.84060193,1573.6,1573.5,13.77623]
[1673964309176,3.84060193,1573.6,1573.5,7.42098]
[1673964309394,3.84060193,1573.6,1573.5,1.066]
[1673964309544,6.09713736,1573.6,1573.5,1.0]
[1673964309757,6.16313736,1573.6,1573.5,1.0]
[1673964310822,5.35860193,1573.6,1573.5,1.0]
[1673964311228,3.90660193,1573.6,1573.5,7.35525]
[1673964311436,3.84060193,1573.6,1573.5,7.42125]
[1673964311870,3.84060193,1573.6,1573.5,13.7765]
[1673964312877,3.36380193,1573.6,1573.5,13.7765]
[1673964313712,3.36380193,1573.6,1573.5,16.7765]
[1673964313881,3.36380193,1573.6,1573.5,17.0065]
[1673964314293,3.36380193,1573.6,1573.5,17.34053535]
[1673964318825,3.36380193,1573.6,1573.5,20.45715942]
[1673964320301,0.06684193,1573.6,1573.5,22.0337515]
[1673964321300,0.06684193,1573.6,1573.5,24.39862256]
[1673964321468,0.06684193,1573.6,1573.5,25.34441068]
[1673964321682,0.06684193,1573.6,1573.5,26.79641068]
[1673964322265,0.06684193,1573.6,1573.5,33.49741068]
[1673964322397,0.06684193,1573.6,1573.5,39.85266068]
[1673964323085,0.06684193,1573.6,1573.5,25.04237743]
[1673964323295,0.06684193,1573.6,1573.5,23.13175]
[1673964324827,0.06684193,1573.6,1573.5,24.7083169]
[1673964325042,0.06684193,1573.6,1573.5,24.9383169]
[1673964326244,0.06684193,1573.6,1573.5,23.13175]
[1673964331465,0.06684193,1573.6,1573.5,23.36175]
[1673964332098,0.06684193,1573.6,1573.5,23.13175]
[1673964332498,0.46088016,1573.6,1573.5,23.13175]
[1673964333508,1.41067451,1573.6,1573.5,23.13175]
[1673964333811,1.41067451,1573.6,1573.5,20.13175]
[1673964334143,1.0,1573.5,1573.2,7.14752412]
[1673964334349,1.446,1573.3,1573.2,0.85728412]
[1673964334556,1.446,1573.3,1573.2,0.80328412]
[1673964334747,1.446,1573.3,1573.2,0.79128412]
[1673964335071,1.87604042,1573.3,1573.2,0.79128412]
[1673964335647,2.82704209,1573.3,1573.2,0.79128412]
[1673964336072,1.87604042,1573.3,1573.2,0.79128412]
[1673964336315,2.82704209,1573.3,1573.2,0.79128412]
[1673964336536,3.30394209,1573.3,1573.2,0.79128412]
[1673964338178,2.35294042,1573.3,1573.2,0.79128412]
[1673964341710,1.9229,1573.3,1573.2,0.79128412]
[1673964341851,1.9229,1573.3,1573.2,13.50422412]
[1673964342065,1.446,1573.3,1573.2,13.57022412]
[1673964343177,1.446,1573.3,1573.2,0.85728412]
[1673964343362,1.9229,1573.3,1573.2,0.79128412]
[1673964343705,1.446,1573.3,1573.2,13.50422412]
[1673964343915,1.446,1573.3,1573.2,13.57022412]
[1673964345291,1.446,1573.3,1573.2,7.21375412]
[1673964347452,1.446,1573.3,1573.2,13.57022412]
[1673964348857,1.446,1573.3,1573.2,7.21375412]
[1673964349480,1.446,1573.3,1573.2,0.85728412]
[1673964349688,1.63829,1573.3,1573.2,0.79128412]
[1673964351237,1.446,1573.3,1573.2,0.79128412]
[1673964351669,1.446,1573.3,1573.2,7.14775412]
[1673964351861,1.446,1573.3,1573.2,7.21375412]
[1673964352302,1.511,1573.5,1573.2,19.92669412]
[1673964352520,1.445,1573.5,1573.2,19.92669412]
[1673964354470,1.51084193,1573.6,1573.3,1.0]
[1673964354688,1.51084193,1573.6,1573.4,19.06698]
[1673964355012,0.06684193,1573.6,1573.4,19.13298]
[1673964355682,0.06684193,1573.6,1573.5,16.9405]
[1673964355845,0.06684193,1573.6,1573.5,17.0065]
[1673964356916,0.06684193,1573.6,1573.5,16.0065]
[1673964358417,0.06684193,1573.6,1573.5,22.36175]
[1673964358786,0.06884193,1573.6,1573.5,22.35975]
[1673964358991,0.06684193,1573.6,1573.5,22.36175]
[1673964360992,0.06684193,1573.6,1573.5,22.13175]
[1673964362684,0.066,1573.8,1573.5,22.36175]
[1673964362890,0.95100167,1573.9,1573.5,22.36175]
[1673964363105,0.95100167,1573.9,1573.6,0.33403535]
[1673964363309,2.37750417,1574.0,1573.6,0.33403535]
[1673964363558,2.37750417,1574.0,1573.7,19.06311]
[1673964363795,2.37750417,1574.0,1573.7,19.12911]
[1673964365200,0.95100167,1574.0,1573.7,19.12911]
[1673964366057,0.95300167,1574.0,1573.7,19.12711]
[1673964366272,0.95100167,1574.0,1573.7,19.12911]
[1673964366490,2.37750417,1574.0,1573.7,19.12911]
[1673964366828,0.95100167,1574.0,1573.7,19.12911]
[1673964368256,2.37750417,1574.0,1573.7,19.12911]
[1673964369002,0.95100167,1574.0,1573.7,19.12911]
[1673964369456,2.37750417,1574.0,1573.7,19.12911]
[1673964370244,2.37950417,1574.0,1573.7,19.12711]
[1673964370509,2.37750417,1574.0,1573.7,19.12911]
[1673964372033,0.95100167,1573.9,1573.7,12.77474]
[1673964372249,0.95300167,1573.9,1573.7,12.77274]
[1673964372510,0.95100167,1573.9,1573.7,12.77474]
[1673964373318,0.95300167,1573.9,1573.7,12.77274]
[1673964373540,0.95300167,1573.9,1573.7,12.77474]
[1673964373541,0.95100167,1573.9,1573.7,12.77474]
[1673964374191,0.95100167,1573.9,1573.7,19.12919]
[1673964374439,2.37750417,1574.0,1573.7,19.12919]
[1673964374716,3.22531324,1574.0,1573.7,19.12919]
[1673964376420,2.37750417,1574.0,1573.7,19.12919]
[1673964376625,0.28292064,1574.1,1573.8,3.33403535]
[1673964376966,0.21692064,1574.1,1573.9,19.06092]
[1673964377142,0.21692064,1574.1,1573.9,19.11292]
[1673964377457,0.21692064,1574.1,1573.9,19.12692]
[1673964377810,2.61992231,1574.1,1573.9,0.066]
[1673964378043,2.61992231,1574.1,1573.8,9.75398535]
[1673964378484,2.62192231,1574.1,1573.8,16.10602535]
[1673964378658,2.61992231,1574.1,1573.8,16.10802535]
[1673964379080,1.16792231,1574.1,1573.8,16.10802535]
[1673964379535,0.21692064,1574.1,1573.8,16.10802535]
[1673964383438,0.21692064,1574.1,1573.8,22.46206535]
[1673964383806,0.21692064,1574.1,1573.9,13.70694]
[1673964384022,0.21692064,1574.1,1573.9,13.77294]
[1673964384380,0.21692064,1574.1,1573.9,20.12658]
[1673964386255,0.21692064,1574.1,1574.0,4.0]
[1673964386467,0.21692064,1574.1,1574.0,21.83913942]
[1673964386681,1e-08,1574.1,1574.0,21.90513942]
[1673964387023,1e-08,1574.1,1574.0,34.85793942]
[1673964387585,1e-08,1574.1,1574.0,41.55893942]
[1673964388282,0.004422,1574.5,1574.2,6.701]
[1673964388480,0.004422,1574.5,1574.3,18.75220687]
[1673964388690,0.004422,1574.5,1574.4,22.50551942]
[1673964388849,0.004422,1574.5,1574.4,38.75431942]
[1673964390268,1.19327567,1574.8,1574.5,1.0]
[1673964390585,1.19327567,1574.8,1574.7,6.68444535]
[1673964390586,0.192274,1574.8,1574.7,6.68444535]
[1673964390791,0.192274,1574.8,1574.7,19.15347942]
[1673964391015,0.192274,1574.8,1574.7,19.44747942]
[1673964391160,0.192274,1574.8,1574.7,20.89947942]
[1673964391366,0.192274,1574.8,1574.7,27.60047942]
[1673964392688,0.192274,1574.8,1574.7,16.10085535]
[1673964393471,0.192274,1574.8,1574.7,19.21747942]
[1673964394465,0.192274,1574.8,1574.7,16.10085535]
[1673964394681,0.192274,1574.8,1574.7,16.33085535]
[1673964395277,0.192274,1574.8,1574.7,16.10085535]
[1673964395486,1.158274,1574.8,1574.7,0.066]
[1673964395702,0.52339638,1574.8,1574.5,6.41689]
[1673964395889,0.192274,1574.8,1574.6,0.33403535]
[1673964396134,0.192274,1574.8,1574.7,12.70082]
[1673964396301,0.192274,1574.8,1574.7,12.76682]
[1673964397199,0.192274,1574.8,1574.7,12.99682]
[1673964398161,0.192274,1574.8,1574.7,12.76682]
[1673964398476,1.0785771,1575.1,1574.7,9.53303407]
[1673964398614,0.40678592,1575.1,1574.8,6.11662407]
[1673964398824,0.40678592,1575.1,1575.0,8.48703535]
[1673964399039,0.40678592,1575.1,1575.0,14.65765942]
[1673964399362,0.40678592,1575.1,1575.0,6.51665942]
[1673964399724,0.40678592,1575.1,1575.0,4.40003535]
[1673964399937,0.40678592,1575.1,1575.0,4.33403535]
[1673964400246,0.40678592,1575.1,1575.0,7.68065942]
[1673964400460,0.40678592,1575.1,1575.0,6.74665942]
[1673964400679,0.40678592,1575.1,1575.0,3.40003535]
[1673964400838,0.40678592,1575.1,1574.9,6.4156]
[1673964401299,0.4764,1575.0,1574.9,6.4156]
[1673964401668,0.40678592,1575.1,1574.9,9.53222407]
[1673964402121,0.40678592,1575.1,1575.0,9.81762407]
[1673964402451,0.40678592,1575.1,1575.0,12.7644]
[1673964402665,0.40678592,1575.1,1575.0,9.4152]
[1673964402846,0.40678592,1575.1,1575.0,12.76182407]
[1673964403057,0.32441832,1575.6,1575.1,0.40599408]
[1673964403258,0.25841832,1575.6,1575.5,0.33403535]
[1673964403484,0.25841832,1575.6,1575.5,0.56403535]
[1673964403736,0.25841832,1575.6,1575.5,7.68065942]
[1673964403875,0.25841832,1575.6,1575.5,7.74665942]
[1673964404401,0.25841832,1575.6,1575.5,15.88965942]
[1673964404764,0.0059849,1575.8,1575.6,9.153]
[1673964405080,4.9e-06,1575.8,1575.7,12.383]
[1673964405296,4.9e-06,1575.8,1575.7,25.83963535]
[1673964405655,0.0125778,1576.1,1575.8,0.0019951]
[1673964405865,0.0125778,1576.1,1576.0,1.78603535]
[1673964406137,0.0125778,1576.1,1576.0,27.16816942]
[1673964406325,0.0233192,1576.2,1576.0,27.23016942]
[1673964406326,1e-08,1576.2,1576.0,27.23016942]
[1673964406533,1e-08,1576.2,1576.0,9.97520535]
[1673964407357,1e-08,1576.2,1576.0,9.74520535]
[1673964407548,1e-08,1576.2,1576.0,0.066]
[1673964407771,1.9281,1576.1,1575.8,0.0019951]
[1673964407982,2.12091,1576.1,1575.8,0.0019951]
[1673964409915,1.452,1575.9,1575.8,0.0019951]
[1673964410104,0.4761,1575.9,1575.8,0.0019951]
[1673964410485,0.4761,1576.0,1575.8,0.0019951]
[1673964411079,0.4761,1576.1,1575.8,0.0019951]
[1673964411913,1.9201,1576.1,1575.8,0.0019951]
[1673964412101,0.19201,1576.0,1575.8,0.0019951]
[1673964412273,0.4761,1575.9,1575.8,0.0019951]
[1673964412591,1.452,1575.9,1575.8,0.0019951]
[1673964412811,5.04472407,1575.9,1575.8,0.0019951]
[1673964413163,0.5421,1575.9,1575.8,0.9179951]
[1673964413357,0.4761,1575.9,1575.8,0.0019951]
[1673964413741,0.542911,1575.9,1575.8,0.0019951]
[1673964416809,3.65953507,1575.9,1575.8,0.0019951]
[1673964417438,12.90911507,1575.9,1575.8,0.0019951]
[1673964417667,12.96911507,1575.9,1575.8,0.0019951]
[1673964417905,1.0,1575.8,1575.2,0.40003535]
[1673964418055,1.0,1575.8,1575.2,0.066]
[1673964418056,1.452,1575.5,1575.2,0.066]
[1673964418269,13.83044221,1576.9,1576.5,3.11662407]
[1673964418495,13.83044221,1576.9,1576.8,0.33403535]
[1673964418496,0.066,1576.9,1576.8,0.33403535]
[1673964418708,0.066,1576.9,1576.8,7.03503535]
[1673964418709,1.028,1576.9,1576.8,7.03503535]
[1673964419053,0.0059849,1577.1,1576.8,7.03503535]
[1673964419054,0.0059849,1577.1,1576.8,6.4076]
[1673964419304,0.0059849,1577.1,1576.9,0.23]
[1673964419604,0.0059849,1577.1,1576.8,0.066]
[1673964419920,1.452,1577.0,1576.6,13.28353535]
[1673964420127,2.07359849,1577.0,1576.6,13.28353535]
[1673964420438,2.07359849,1577.0,1576.6,12.9495]
[1673964420439,1.14579849,1577.0,1576.6,12.9495]
[1673964420595,1.62159849,1577.0,1576.6,12.9495]
[1673964420806,1.62359849,1577.0,1576.6,12.9475]
[1673964421060,1.62159849,1577.0,1576.6,12.9495]
[1673964421224,2.62735137,1577.2,1577.0,2.51712964]
[1673964421225,0.004,1577.2,1577.0,2.51712964]
[1673964421429,0.007,1577.8,1577.3,32.06044]
[1673964421695,1.1085771,1578.2,1577.7,0.33403535]
[1673964421922,0.93690934,1579.1,1578.1,7.03503535]
[1673964422132,71.25033635,1579.3,1578.4,6.33552]
[1673964422133,0.03,1578.6,1578.4,6.33552]
[1673964422319,49.15063947,1579.3,1579.0,0.33403535]
[1673964422486,0.04431818,1579.5,1579.2,1.78503535]
[1673964422487,0.10431818,1579.5,1579.2,1.78503535]
[1673964422697,0.0079007,1580.0,1579.3,7.4061]
[1673964422909,0.0079007,1580.0,1579.6,0.33403535]
[1673964423113,0.0079007,1580.0,1579.9,4.56862407]
[1673964423323,0.0079007,1580.0,1579.4,0.85050331]
[1673964423549,0.4749,1580.1,1579.9,3.11662407]
[1673964423799,6.38722,1580.5,1578.9,1.445]
[1673964423800,10.66596465,1580.0,1578.9,1.445]
[1673964423971,3.54489046,1579.8,1578.8,0.03]
[1673964424343,1.452,1579.2,1578.5,0.126]
[1673964424499,6.33316,1579.0,1578.3,0.004]
[1673964424715,6.33316,1579.0,1578.0,0.33403535]
[1673964424716,1.9202,1578.9,1578.0,0.33403535]
[1673964425071,0.4752,1578.9,1578.3,0.33403535]
[1673964425216,0.4752,1578.9,1578.0,9.07426]